bitfinex/quotes_BTCUSD_20251231
["timestamp","ask_amount","ask_price","bid_price","bid_amount"]
[1767166649284,0.15089349,88625.0,88621.0,0.01132]
[1767166649430,0.15089349,88625.0,88622.0,0.01132]
[1767166650306,0.06770067,88626.0,88622.0,0.01127811]
[1767166650502,0.01128349,88625.0,88622.0,0.01127811]
[1767166651442,0.13961,88623.0,88621.0,0.00010617]
[1767166652014,0.01128362,88624.0,88621.0,0.00010617]
[1767166653007,0.13961,88623.0,88621.0,0.00010617]
[1767166655907,0.19602884,88623.0,88621.0,0.00010617]
[1767166656164,0.05641884,88623.0,88621.0,0.00010617]
[1767166656367,0.13961,88623.0,88621.0,0.00010617]
[1767166657184,0.13961,88622.0,88621.0,0.00010617]
[1767166658657,0.13961,88622.0,88611.0,0.0002]
[1767166658659,0.13961,88613.0,88611.0,0.0002]
[1767166658821,9.584e-05,88613.0,88611.0,0.0002]
[1767166666531,0.01128477,88615.0,88611.0,0.0002]
[1767166666876,0.0096196,88616.0,88615.0,0.000454]
[1767166667078,0.0096196,88616.0,88611.0,0.0002]
[1767166667536,0.01128477,88615.0,88611.0,0.0002]
[1767166668184,0.01128489,88614.0,88611.0,0.0002]
[1767166668335,0.01128477,88615.0,88611.0,0.0002]
[1767166668680,0.01128489,88614.0,88611.0,0.0002]
[1767166669389,0.01128477,88615.0,88614.0,0.000454]
[1767166669883,0.01128489,88614.0,88611.0,0.0002]
[1767166672810,0.01128451,88617.0,88611.0,0.0002]
[1767166673007,0.01128451,88617.0,88614.0,0.000454]
[1767166673210,0.01128438,88618.0,88614.0,0.000454]
[1767166673382,0.01128451,88617.0,88611.0,0.0002]
[1767166674033,0.01128438,88618.0,88617.0,0.000454]
[1767166674193,0.27316203,88621.0,88617.0,0.000454]
[1767166674401,0.01128362,88624.0,88617.0,0.000454]
[1767166674621,0.01128337,88626.0,88617.0,0.000454]
[1767166674622,0.01128349,88625.0,88622.0,0.00055]
[1767166674979,0.06770156,88625.0,88622.0,0.00055]
[1767166675179,0.01128349,88625.0,88617.0,0.1389]
[1767166675380,0.06770062,88626.0,88617.0,0.1389]
[1767166675949,0.01128349,88625.0,88617.0,0.1389]
[1767166676375,0.01128337,88626.0,88617.0,0.1389]
[1767166676573,0.01128349,88625.0,88617.0,0.1389]
[1767166677305,0.01128337,88626.0,88617.0,0.1389]
[1767166677518,0.01128349,88625.0,88617.0,0.1389]
[1767166679558,0.01132,88628.0,88625.0,0.000454]
[1767166679760,0.01132,88628.0,88617.0,0.1389]
[1767166679917,0.01128298,88629.0,88617.0,0.1389]
[1767166680636,0.01128311,88628.0,88615.0,0.1389]
[1767166680834,0.01128324,88627.0,88615.0,0.1389]
[1767166681242,0.01128311,88628.0,88615.0,0.1389]
[1767166681455,0.01124036,88629.0,88615.0,0.1389]
[1767166681655,0.01124151,88628.0,88615.0,0.1389]
[1767166682074,0.01128337,88626.0,88615.0,0.1389]
[1767166682284,0.0112826,88632.0,88626.0,0.000454]
[1767166682534,0.01132,88634.0,88620.0,0.14199]
[1767166682730,0.26184203,88630.0,88620.0,0.14199]
[1767166683063,5.194e-05,88630.0,88622.0,0.14199]
[1767166683262,0.00015808,88631.0,88630.0,0.00040206]
[1767166683560,0.00015808,88631.0,88622.0,0.14199]
[1767166684185,8e-08,88631.0,88624.0,0.14199]
[1767166685863,8e-08,88631.0,88624.0,0.14087]
[1767166690388,8e-08,88631.0,88624.0,0.14199]
[1767166690586,8e-08,88631.0,88624.0,0.15327362]
[1767166691642,8e-08,88631.0,88624.0,0.14199]
[1767166692788,8e-08,88631.0,88624.0,0.15327362]
[1767166693334,8e-08,88631.0,88624.0,0.14199]
[1767166693956,8e-08,88631.0,88624.0,0.15327362]
[1767166694365,8e-08,88631.0,88626.0,0.15327337]
[1767166694566,8e-08,88631.0,88626.0,0.14199]
[1767166695312,8e-08,88631.0,88626.0,0.15327337]
[1767166695689,8e-08,88631.0,88626.0,0.14199]
[1767166695893,8e-08,88631.0,88626.0,0.15327337]
[1767166696292,8e-08,88631.0,88628.0,0.14199]
[1767166696508,8e-08,88631.0,88630.0,0.14415]
[1767166701972,8e-08,88631.0,88629.0,0.01132]
[1767166702173,8e-08,88631.0,88629.0,0.15547]
[1767166704609,8e-08,88631.0,88629.0,0.01132]
[1767166704801,8e-08,88631.0,88629.0,0.15547]
[1767166710373,0.0001135,88650.0,88638.0,0.01128184]
[1767166710541,0.0001135,88650.0,88643.0,0.14415]
[1767166710542,7.092e-05,88650.0,88643.0,0.14415]
[1767166714386,2.932e-05,88650.0,88643.0,0.14415]
[1767166715488,2.932e-05,88650.0,88643.0,0.1554312]
[1767166715690,2.932e-05,88650.0,88643.0,0.14415]
[1767166716705,2.932e-05,88650.0,88643.0,0.14409357]
[1767166721388,2.932e-05,88650.0,88642.0,0.01356806]
[1767166729098,2.932e-05,88650.0,88643.0,0.14056]
[1767166738984,2.932e-05,88650.0,88643.0,0.1518412]
[1767166739285,2.932e-05,88650.0,88643.0,0.14056]
[1767166739681,2.932e-05,88650.0,88643.0,0.1518412]
[1767166739827,2.932e-05,88650.0,88643.0,0.14056]
[1767166740033,2.932e-05,88650.0,88643.0,0.1518412]
[1767166740429,0.00010028,88657.0,88643.0,0.14056]
[1767166741323,0.00010028,88657.0,88643.0,0.1518412]
[1767166741849,0.00010028,88657.0,88643.0,0.14056]
[1767166742499,0.00010028,88657.0,88644.0,0.01128107]
[1767166742698,0.00010028,88657.0,88645.0,0.13713]
[1767166742906,0.02450459,88657.0,88647.0,0.13713]
[1767166743110,0.00010028,88657.0,88647.0,0.13713]
[1767166743313,0.00010028,88657.0,88653.0,0.13713]
[1767166743647,0.00010028,88657.0,88654.0,0.14841]
[1767166744382,0.00010028,88657.0,88654.0,0.148105]
[1767166744592,0.00010028,88657.0,88654.0,0.010975]
[1767166745007,0.12991028,88657.0,88655.0,0.01128]
[1767166747773,0.00010028,88657.0,88655.0,0.01128]
[1767166749755,0.00010028,88657.0,88655.0,0.01036]
[1767166764416,2.8e-07,88657.0,88655.0,0.01036]
[1767166764627,2.8e-07,88657.0,88655.0,0.15596]
[1767166766904,2.8e-07,88657.0,88655.0,0.01036]
[1767166768287,2.8e-07,88657.0,88655.0,0.01026]
[1767166771694,0.09699,88656.0,88638.0,0.1456]
[1767166771894,0.26168643,88648.0,88639.0,0.02484806]
[1767166772115,0.26168643,88650.0,88639.0,0.02484806]
[1767166772928,0.26168643,88650.0,88639.0,0.01139322]
[1767166773916,0.05639551,88660.0,88641.0,0.01128146]
[1767166774113,0.03578178,88659.0,88650.0,0.000549]
[1767166774359,0.00010622,88659.0,88650.0,0.146149]
[1767166774670,0.00010622,88659.0,88652.0,0.1456]
[1767166775467,2.2e-07,88659.0,88652.0,0.1456]
[1767166790588,2.2e-07,88659.0,88651.0,0.01356806]
[1767166791006,0.01127939,88659.0,88648.0,0.01132]
[1767166791210,2.2e-07,88659.0,88648.0,0.01132]
[1767166791624,0.01127939,88659.0,88648.0,0.01132]
[1767166791825,2.2e-07,88659.0,88648.0,0.01132]
[1767166794966,2.2e-07,88659.0,88648.0,0.15727]
[1767166795328,2.2e-07,88659.0,88651.0,0.01356806]
[1767166799666,2.2e-07,88659.0,88651.0,0.15951806]
[1767166801174,2.2e-07,88659.0,88651.0,0.17079824]
[1767166801376,0.02439095,88666.0,88651.0,0.17079824]
[1767166801377,0.0002,88669.0,88655.0,0.01127967]
[1767166801622,0.00035177,88671.0,88669.0,0.13766]
[1767166801981,7.7e-07,88671.0,88669.0,0.13766]
[1767166804923,7.7e-07,88671.0,88669.0,0.137553]
[1767166805101,7.7e-07,88671.0,88665.0,0.01128]
[1767166805300,7.7e-07,88671.0,88665.0,0.01073]
[1767166805884,0.01127841,88671.0,88665.0,0.01073]
[1767166806092,0.01127789,88669.0,88665.0,0.01073]
[1767166806323,0.10868777,88670.0,88665.0,0.01073]
[1767166806522,0.01127789,88669.0,88665.0,0.01073]
[1767166807418,0.01127841,88671.0,88665.0,0.01073]
[1767166807619,0.01127777,88670.0,88665.0,0.01073]
[1767166809111,0.01127802,88668.0,88665.0,0.01073]
[1767166809312,0.01127789,88669.0,88665.0,0.01073]
[1767166809939,0.01127777,88670.0,88665.0,0.01073]
[1767166810303,0.01127789,88669.0,88665.0,0.01073]
[1767166811308,0.01127841,88671.0,88665.0,0.01073]
[1767166811511,0.01127777,88670.0,88665.0,0.01073]
[1767166811949,0.01127841,88671.0,88665.0,0.01073]
[1767166813868,0.01127777,88670.0,88665.0,0.01001]
[1767166814231,7.7e-07,88671.0,88665.0,0.01001]
[1767166814440,0.01127841,88671.0,88665.0,0.01001]
[1767166815514,7.7e-07,88671.0,88665.0,0.01001]
[1767166815872,0.01127841,88671.0,88665.0,0.01001]
[1767166816077,0.01127777,88670.0,88665.0,0.01001]
[1767166816410,7.7e-07,88671.0,88665.0,0.01001]
[1767166816961,0.01127841,88671.0,88665.0,0.01001]
[1767166817172,0.01127777,88670.0,88665.0,0.01001]
[1767166817583,0.01127802,88668.0,88665.0,0.01001]
[1767166817969,0.01127815,88667.0,88665.0,0.01128]
[1767166818169,0.15506932,88667.0,88665.0,0.01128]
[1767166818423,0.0874,88667.0,88665.0,0.01128]
[1767166818590,0.01127802,88668.0,88665.0,0.01128]
[1767166818789,0.06766854,88668.0,88665.0,0.01128]
[1767166819297,0.01127802,88668.0,88665.0,0.01128]
[1767166819520,0.01127789,88669.0,88665.0,0.01128]
[1767166819696,0.01127802,88668.0,88665.0,0.01128]
[1767166820099,0.06766857,88668.0,88665.0,0.01128]
[1767166820286,0.06766857,88668.0,88665.0,0.01123839]
[1767166820483,0.01127828,88666.0,88659.0,0.01128]
[1767166820762,0.0112784,88665.0,88659.0,0.01128]
[1767166821139,0.0112784,88665.0,88659.0,0.01123769]
[1767166821361,0.06766825,88668.0,88659.0,0.01123769]
[1767166821506,0.01127828,88666.0,88659.0,0.01123769]
[1767166821705,0.01163201,88668.0,88659.0,0.01123769]
[1767166821912,0.01127828,88666.0,88659.0,0.01123769]
[1767166822107,0.00035399,88668.0,88659.0,0.15446769]
[1767166822611,0.01163201,88668.0,88659.0,0.15446769]
[1767166823340,0.01127815,88667.0,88659.0,0.15446769]
[1767166824295,0.00035399,88668.0,88667.0,0.000549]
[1767166824610,0.01163201,88668.0,88659.0,0.15446769]
[1767166825617,0.01127815,88667.0,88659.0,0.15446769]
[1767166825812,0.01163201,88668.0,88659.0,0.15446769]
[1767166826616,0.00035399,88668.0,88659.0,0.15446769]
[1767166829369,3.99e-06,88668.0,88659.0,0.15446769]
[1767166829589,3.99e-06,88668.0,88666.0,0.14323]
[1767166829791,3.99e-06,88668.0,88666.0,0.14318637]
[1767166830712,3.99e-06,88668.0,88666.0,0.14314483]
[1767166833308,3.99e-06,88668.0,88666.0,0.1431033]
[1767166836221,3.99e-06,88668.0,88667.0,0.15451]
[1767166839733,3.99e-06,88668.0,88667.0,0.15446788]
[1767166842661,3.99e-06,88668.0,88667.0,0.01123788]
[1767166845137,3.99e-06,88668.0,88662.0,0.14323]
[1767166846198,3.99e-06,88668.0,88667.0,0.15679806]
[1767166846838,3.99e-06,88668.0,88667.0,0.01356806]
[1767166847918,3.99e-06,88668.0,88662.0,0.14377]
[1767166849831,3.99e-06,88668.0,88661.0,0.01128]
[1767166851572,3.99e-06,88668.0,88661.0,0.15505]
[1767166852555,3.99e-06,88668.0,88666.0,0.01356806]
[1767166855802,3.99e-06,88668.0,88666.0,0.15733806]
[1767166858840,3.99e-06,88668.0,88661.0,0.01128]
[1767166860809,0.01128201,88668.0,88661.0,0.01128]
[1767166861285,3.99e-06,88668.0,88661.0,0.01128]
[1767166861828,0.01128201,88668.0,88661.0,0.01128]
[1767166862048,0.01127815,88667.0,88661.0,0.01128]
[1767166862252,0.01128201,88668.0,88661.0,0.01128]
[1767166863534,3.99e-06,88668.0,88661.0,0.01128]
[1767166863736,0.01127815,88667.0,88661.0,0.01128]
[1767166863951,0.01127815,88667.0,88661.0,0.0112367]
[1767166864151,0.01128201,88668.0,88661.0,0.0112367]
[1767166866103,0.01127815,88667.0,88661.0,0.0112367]
[1767166866309,3.99e-06,88668.0,88661.0,0.0112367]
[1767166866611,3.99e-06,88668.0,88661.0,0.0111946]
[1767166867115,0.01128201,88668.0,88661.0,0.0111946]
[1767166867685,0.01127815,88667.0,88661.0,0.0111946]
[1767166867886,0.01128201,88668.0,88661.0,0.0111946]
[1767166869119,0.01127815,88667.0,88661.0,0.0111946]
[1767166869304,0.01128201,88668.0,88661.0,0.0111946]
[1767166869504,0.01128201,88668.0,88654.0,0.0001135]
[1767166869505,0.01127929,88658.0,88654.0,0.0001135]
[1767166869701,0.01127891,88661.0,88654.0,0.0001135]
[1767166869702,0.06767394,88661.0,88654.0,0.0001135]
[1767166870037,0.01127904,88660.0,88654.0,0.0001135]
[1767166870406,0.06767394,88661.0,88654.0,0.0001135]
[1767166870607,0.01127878,88662.0,88654.0,0.0001135]
[1767166870816,0.01127891,88661.0,88654.0,0.0001135]
[1767166871748,0.01127878,88662.0,88654.0,0.0001135]
[1767166872969,0.01127866,88663.0,88654.0,0.0001135]
[1767166873170,0.06767176,88664.0,88654.0,0.1389035]
[1767166873397,0.01127853,88664.0,88654.0,0.1389035]
[1767166875197,0.0112784,88665.0,88654.0,0.1389035]
[1767166877263,0.00056,88661.0,88654.0,0.1389035]
[1767166877472,1e-05,88661.0,88654.0,0.1389035]
[1767166878425,1e-05,88661.0,88655.0,0.15575806]
[1767166880273,1e-05,88661.0,88654.0,0.1423035]
[1767166888275,1e-05,88661.0,88655.0,0.15575806]
[1767166898351,0.26167159,88670.0,88657.0,0.14219]
[1767166898648,0.26171946,88670.0,88657.0,0.14219]
[1767166900710,0.26171946,88670.0,88657.0,0.15346942]
[1767166901048,0.26171946,88670.0,88657.0,0.14219]
[1767166901860,0.26171946,88670.0,88657.0,0.15346942]
[1767166902061,0.26171946,88670.0,88657.0,0.14219]
[1767166905212,0.27299723,88670.0,88657.0,0.14219]
[1767166905432,0.01127828,88666.0,88655.0,0.01356806]
[1767166905649,0.01127815,88667.0,88655.0,0.01356806]
[1767166908380,0.09914789,88669.0,88655.0,0.01356806]
[1767166909356,0.27299723,88670.0,88655.0,0.15355806]
[1767166910087,4.787e-05,88670.0,88655.0,0.16483773]
[1767166910291,0.26171946,88670.0,88656.0,0.13999]
[1767166910503,0.27299723,88670.0,88656.0,0.13999]
[1767166910705,0.26171946,88670.0,88656.0,0.13999]
[1767166910899,0.27299723,88670.0,88656.0,0.13999]
[1767166911306,0.26171946,88670.0,88656.0,0.13999]
[1767166917264,4.787e-05,88670.0,88657.0,0.01127942]
[1767166917467,4.787e-05,88670.0,88658.0,0.13999]
[1767166918252,4.787e-05,88670.0,88661.0,0.13999]
[1767166919348,0.01128,88675.0,88661.0,0.13999]
[1767166919549,0.02255713,88675.0,88661.0,0.14003787]
[1767166919849,0.01128,88675.0,88661.0,0.14003787]
[1767166920081,0.02255713,88675.0,88661.0,0.14003787]
[1767166920485,0.01127726,88674.0,88661.0,0.14003787]
[1767166921478,0.26167159,88671.0,88661.0,0.13948787]
[1767166921686,0.27294923,88671.0,88661.0,0.13948787]
[1767166923449,0.01127828,88666.0,88661.0,4.787e-05]
[1767166923653,0.06766856,88668.0,88661.0,4.787e-05]
[1767166924048,0.06766932,88667.0,88661.0,4.787e-05]
[1767166924262,0.08837,88662.0,88654.0,0.0001135]
[1767166924474,0.07854,88656.0,88654.0,3.5e-06]
[1767166926794,0.08981929,88658.0,88654.0,3.5e-06]
[1767166928079,0.07854,88658.0,88654.0,3.5e-06]
[1767166928288,0.08981929,88658.0,88654.0,3.5e-06]
[1767166928489,0.07854,88658.0,88654.0,3.5e-06]
[1767166928722,0.08981929,88658.0,88654.0,3.5e-06]
[1767166929988,0.07854,88658.0,88654.0,3.5e-06]
[1767166930278,0.08981929,88658.0,88654.0,3.5e-06]
[1767166930481,0.01127942,88657.0,88654.0,3.5e-06]
[1767166933559,0.08981929,88658.0,88654.0,3.5e-06]
[1767166933895,0.01127942,88657.0,88654.0,3.5e-06]
[1767166934554,0.01127929,88658.0,88654.0,3.5e-06]
[1767166937046,0.01127942,88657.0,88654.0,3.5e-06]
[1767166937246,0.01127929,88658.0,88654.0,3.5e-06]
[1767166938578,0.01127904,88660.0,88654.0,3.5e-06]
[1767166938779,0.01127904,88660.0,88658.0,0.000549]
[1767166939087,0.01127904,88660.0,88654.0,3.5e-06]
[1767166939444,0.01127929,88658.0,88654.0,3.5e-06]
[1767166939984,0.01127942,88657.0,88654.0,3.5e-06]
[1767166944581,0.01127942,88657.0,88654.0,0.00035749]
[1767166953525,0.06767711,88657.0,88654.0,0.00035749]
[1767166954061,0.01127942,88657.0,88654.0,0.00035749]
[1767166955096,0.0676761,88658.0,88654.0,0.00035749]
[1767166957661,0.01127917,88659.0,88658.0,0.000549]
[1767166957865,0.01127917,88659.0,88654.0,0.14945749]
[1767166958419,0.01127904,88660.0,88659.0,0.000549]
[1767166958781,0.01127904,88660.0,88654.0,0.14945749]
[1767166958979,0.01127904,88660.0,88654.0,0.00035749]
[1767166958980,0.06767542,88659.0,88654.0,0.00035749]
[1767166959183,0.01127929,88658.0,88654.0,0.00035749]
[1767166960748,0.01127942,88657.0,88654.0,0.00035749]
[1767166970985,0.06712783,88657.0,88654.0,0.00035749]
[1767166971170,0.05639809,88656.0,88654.0,4.9e-07]
[1767166977233,0.06712783,88657.0,88654.0,4.9e-07]
[1767166977451,0.06712783,88657.0,88656.0,0.000357]
[1767166977816,0.06712783,88657.0,88654.0,4.9e-07]
[1767166979866,0.05639815,88656.0,88654.0,4.9e-07]
[1767166985337,0.06712783,88657.0,88654.0,4.9e-07]
[1767166986997,0.05639807,88656.0,88654.0,4.9e-07]
[1767166987679,0.06712783,88657.0,88654.0,4.9e-07]
[1767166989426,0.01127929,88658.0,88657.0,0.000357]
[1767166989672,0.01127942,88657.0,88654.0,4.9e-07]
[1767166989913,0.01127929,88658.0,88654.0,4.9e-07]
[1767166990134,0.01072942,88657.0,88654.0,4.9e-07]
[1767166990899,0.01127929,88658.0,88654.0,4.9e-07]
[1767166991368,0.01127917,88659.0,88654.0,4.9e-07]
[1767166991692,0.01127929,88658.0,88654.0,4.9e-07]
[1767166992117,0.01127917,88659.0,88654.0,4.9e-07]
[1767166992533,0.01127929,88658.0,88654.0,4.9e-07]
[1767166992750,0.01127917,88659.0,88654.0,4.9e-07]
[1767166993577,0.01127929,88658.0,88654.0,4.9e-07]
[1767166994927,0.01127942,88657.0,88654.0,4.9e-07]
[1767166995154,0.01127929,88658.0,88654.0,4.9e-07]
[1767166998582,0.01127917,88659.0,88654.0,4.9e-07]
[1767166999908,0.01127929,88658.0,88654.0,4.9e-07]
[1767167000434,0.01127917,88659.0,88654.0,4.9e-07]
[1767167001707,0.06767472,88660.0,88654.0,4.9e-07]
[1767167002894,0.01127917,88659.0,88654.0,4.9e-07]
[1767167003435,0.06767472,88660.0,88654.0,4.9e-07]
[1767167004288,0.05639429,88662.0,88654.0,4.9e-07]
[1767167004507,0.05639363,88663.0,88661.0,0.000357]
[1767167004710,0.06767229,88663.0,88654.0,0.14186049]
[1767167004920,0.01127891,88661.0,88654.0,0.14186049]
[1767167005131,0.01127904,88660.0,88654.0,0.14186049]
[1767167005333,0.01127917,88659.0,88654.0,0.14186049]
[1767167005678,0.01127929,88658.0,88654.0,0.14186049]
[1767167005971,0.01127917,88659.0,88654.0,0.14186049]
[1767167006480,0.01127904,88660.0,88654.0,0.14186049]
[1767167007403,0.00246,88656.0,88654.0,0.14186049]
[1767167007588,0.002103,88656.0,88654.0,0.14186049]
[1767167009380,3e-06,88656.0,88654.0,4.9e-07]
[1767167024290,0.05640114,88656.0,88654.0,4.9e-07]
[1767167029693,0.05640114,88656.0,88655.0,0.00052919]
[1767167029886,0.05640114,88656.0,88655.0,1.9e-07]
[1767167033571,3e-06,88656.0,88655.0,1.9e-07]
[1767167099687,3e-06,88656.0,88655.0,0.13620019]
[1767167100292,3e-06,88656.0,88655.0,1.9e-07]
[1767167101572,0.01128082,88646.0,88635.0,0.06082254]
[1767167101778,0.01128082,88646.0,88633.0,0.0001135]
[1767167101779,0.0564073,88641.0,88640.0,1e-08]
[1767167101954,0.01128197,88637.0,88633.0,0.1489835]
[1767167102160,0.01128158,88640.0,88637.0,0.000529]
[1767167102564,0.01128146,88641.0,88633.0,0.1489835]
[1767167103025,0.01128158,88640.0,88633.0,0.1489835]
[1767167103673,0.01128146,88641.0,88633.0,0.1489835]
[1767167103819,0.01128133,88642.0,88641.0,0.000529]
[1767167104385,0.01128133,88642.0,88633.0,0.1489835]
[1767167104607,0.0676876,88643.0,88633.0,0.1489835]
[1767167105412,0.01128133,88642.0,88633.0,0.1489835]
[1767167105656,0.0676876,88643.0,88633.0,0.1489835]
[1767167105862,0.0112812,88643.0,88633.0,0.1489835]
[1767167106082,0.01128133,88642.0,88633.0,0.1489835]
[1767167106604,0.0112812,88643.0,88633.0,0.1489835]
[1767167107961,0.01128133,88642.0,88633.0,0.1489835]
[1767167108650,0.01128146,88641.0,88633.0,0.1489835]
[1767167108778,0.01128133,88642.0,88633.0,0.1489835]
[1767167109847,0.0112812,88643.0,88642.0,0.000529]
[1767167110448,0.0112812,88643.0,88633.0,0.1489835]
[1767167115090,0.01128133,88642.0,88633.0,0.1489835]
[1767167115456,0.0112812,88643.0,88633.0,0.1489835]
[1767167119781,0.01128158,88640.0,88633.0,0.1489835]
[1767167119915,0.01128146,88641.0,88633.0,0.1489835]
[1767167120758,0.01128133,88642.0,88633.0,0.1489835]
[1767167121854,0.01128146,88641.0,88633.0,0.14908972]
[1767167122844,0.01128133,88642.0,88633.0,0.14908972]
[1767167123342,0.01128146,88641.0,88633.0,0.14908972]
[1767167123501,0.01128158,88640.0,88633.0,0.14908972]
[1767167123928,0.01128146,88641.0,88633.0,0.14908972]
[1767167124948,0.01128133,88642.0,88633.0,0.14908972]
[1767167125802,0.01128146,88641.0,88633.0,0.14908972]
[1767167126132,0.01128133,88642.0,88633.0,0.14908972]
[1767167126672,0.01128146,88641.0,88633.0,0.14908972]
[1767167128594,0.01128133,88642.0,88633.0,0.14908972]
[1767167129492,0.01128146,88641.0,88633.0,0.14908972]
[1767167130836,0.01128158,88640.0,88633.0,0.14908972]
[1767167131347,0.01128171,88639.0,88633.0,0.14908972]
[1767167131518,0.01128158,88640.0,88633.0,0.14908972]
[1767167132736,0.01128171,88639.0,88633.0,0.14908972]
[1767167133005,0.01128171,88639.0,88633.0,0.00021972]
[1767167133006,0.01128197,88637.0,88633.0,0.00021972]
[1767167133474,0.01128184,88638.0,88633.0,0.00021972]
[1767167135424,0.01128197,88637.0,88633.0,0.00021972]
[1767167135630,0.01128273,88631.0,88628.0,0.13306201]
[1767167135806,0.0112826,88632.0,88628.0,0.13306201]
[1767167136210,0.01128247,88633.0,88628.0,0.13306201]
[1767167139028,0.01128273,88631.0,88626.0,0.0001135]
[1767167139231,0.00057,88628.0,88626.0,0.0001135]
[1767167139454,0.00057,88628.0,88620.0,0.0001135]
[1767167139455,0.05642,88622.0,88620.0,0.0001135]
[1767167139720,0.01128375,88623.0,88620.0,0.00016544]
[1767167140018,0.01128362,88624.0,88620.0,0.00016544]
[1767167140173,0.01128375,88623.0,88620.0,0.00016544]
[1767167140351,0.01128362,88624.0,88620.0,0.00016544]
[1767167140555,0.01128375,88623.0,88620.0,0.00016544]
[1767167140752,0.01128349,88625.0,88620.0,0.00016544]
[1767167141208,0.01128362,88624.0,88620.0,0.00016544]
[1767167141418,0.01128349,88625.0,88620.0,0.00016544]
[1767167141698,0.01128362,88624.0,88620.0,0.00016544]
[1767167142258,0.01128337,88626.0,88620.0,0.00016544]
[1767167142875,0.01128349,88625.0,88620.0,0.00016544]
[1767167143714,0.01128362,88624.0,88620.0,0.00016544]
[1767167144037,0.01128349,88625.0,88620.0,0.00016544]
[1767167144545,0.01128337,88626.0,88620.0,0.00016544]
[1767167145256,0.01128349,88625.0,88620.0,0.00016544]
[1767167145466,0.01128337,88626.0,88620.0,0.00016544]
[1767167145668,0.01128349,88625.0,88620.0,0.00016544]
[1767167145872,0.01128337,88626.0,88620.0,0.00016544]
[1767167146099,0.01128349,88625.0,88620.0,0.00016544]
[1767167146310,0.0677014,88625.0,88620.0,0.00016544]
[1767167146541,0.06770082,88626.0,88620.0,0.00016544]
[1767167146749,0.01128349,88625.0,88620.0,0.00016544]
[1767167147281,0.01128362,88624.0,88620.0,0.00016544]
[1767167147591,0.01128349,88625.0,88620.0,0.00016544]
[1767167147941,0.02260349,88625.0,88620.0,0.00016544]
[1767167148076,0.01128362,88624.0,88620.0,0.00016544]
[1767167148274,0.01128375,88623.0,88620.0,0.00016544]
[1767167148496,0.05641985,88622.0,88620.0,4.4e-07]
[1767167149711,0.06770295,88623.0,88620.0,4.4e-07]
[1767167150835,0.05641991,88622.0,88620.0,4.4e-07]
[1767167151050,0.05641978,88622.0,88620.0,4.4e-07]
[1767167152040,0.05641978,88622.0,88613.0,7.254e-05]
[1767167152354,0.01128413,88620.0,88613.0,7.254e-05]
[1767167152536,0.011284,88621.0,88613.0,7.254e-05]
[1767167152951,0.06770365,88622.0,88613.0,7.254e-05]
[1767167153807,0.011284,88621.0,88613.0,7.254e-05]
[1767167154506,0.01128426,88619.0,88613.0,7.254e-05]
[1767167154745,0.01128464,88616.0,88613.0,7.254e-05]
[1767167154955,0.06770823,88616.0,88613.0,7.254e-05]
[1767167155349,0.01128464,88616.0,88613.0,7.254e-05]
[1767167155546,0.06770606,88619.0,88613.0,7.254e-05]
[1767167155547,0.01128451,88617.0,88613.0,7.254e-05]
[1767167155750,0.01128464,88616.0,88613.0,7.254e-05]
[1767167157603,0.06770822,88616.0,88613.0,7.254e-05]
[1767167157801,0.06770822,88616.0,88613.0,3.03e-05]
[1767167158343,0.06770822,88616.0,88606.0,0.0001135]
[1767167158344,0.06770997,88614.0,88606.0,0.0001135]
[1767167158541,0.01128528,88611.0,88605.0,0.1401475]
[1767167158754,0.01128515,88612.0,88605.0,0.1401475]
[1767167159775,0.01128515,88612.0,88605.0,0.13864064]
[1767167159977,0.06771066,88613.0,88604.0,0.14291]
[1767167160337,0.0564214,88612.0,88604.0,9.584e-05]
[1767167160471,0.0112854,88610.0,88605.0,0.14291]
[1767167160813,0.06771066,88613.0,88605.0,0.14291]
[1767167160973,0.06771066,88613.0,88610.0,0.000344]
[1767167161541,0.01128515,88612.0,88605.0,0.14291]
[1767167162401,0.27308969,88615.0,88612.0,0.000344]
[1767167162605,0.01128477,88615.0,88605.0,0.14291]
[1767167162812,0.27308969,88615.0,88605.0,0.14291]
[1767167164657,0.01128489,88614.0,88605.0,0.14291]
[1767167165866,0.27308969,88615.0,88605.0,0.14291]
[1767167166409,0.01128489,88614.0,88605.0,0.14291]
[1767167167008,0.26180492,88615.0,88605.0,0.14291]
[1767167167214,0.01128464,88616.0,88614.0,0.000344]
[1767167167419,0.02260451,88617.0,88614.0,0.000344]
[1767167167633,0.02260451,88617.0,88605.0,0.14291]
[1767167168504,0.01132,88617.0,88605.0,0.14291]
[1767167169573,0.01132,88617.0,88605.0,0.15419604]
[1767167169901,0.01132,88617.0,88606.0,0.01128591]
[1767167170109,0.01132,88617.0,88607.0,0.14206]
[1767167170506,0.26180492,88620.0,88617.0,0.000344]
[1767167170705,0.01132,88621.0,88613.0,0.14206]
[1767167173327,0.03400045,88623.0,88613.0,0.14206]
[1767167173541,0.56197635,88661.0,88622.0,0.14206]
[1767167173542,0.26191842,88630.0,88622.0,0.14206]
[1767167173749,0.0001135,88630.0,88622.0,0.15334387]
[1767167173950,0.0001135,88630.0,88622.0,0.14206]
[1767167174589,0.11180842,88632.0,88630.0,0.142173]
[1767167174784,0.0001135,88637.0,88632.0,0.000231]
[1767167174928,0.0001135,88637.0,88630.0,0.14206]
[1767167180062,0.0001135,88637.0,88630.0,0.11763969]
[1767167181045,0.01139547,88637.0,88630.0,0.11763969]
[1767167181244,0.0001135,88637.0,88630.0,0.11763969]
[1767167181472,0.01139547,88637.0,88628.0,0.01132]
[1767167181683,0.0001135,88637.0,88628.0,0.01132]
[1767167183321,0.0001135,88637.0,88628.0,0.15721]
[1767167187785,0.0113947,88643.0,88637.0,0.0001095]
[1767167187786,0.0001135,88643.0,88637.0,0.0001095]
[1767167187985,0.00021961,88643.0,88637.0,0.0001095]
[1767167188192,0.00021961,88643.0,88636.0,0.01132]
[1767167210909,0.02148558,88648.0,88637.0,0.07356954]
[1767167211116,0.0001135,88650.0,88637.0,0.08485151]
[1767167211256,0.0001135,88650.0,88639.0,0.14363]
[1767167213391,0.0001135,88650.0,88642.0,0.15491133]
[1767167213566,0.0001135,88650.0,88643.0,0.01132]
[1767167218811,0.0001135,88650.0,88643.0,0.010548]
[1767167221813,0.0001135,88650.0,88630.0,0.01128255]
[1767167222027,0.0001135,88650.0,88631.0,0.01128]
[1767167222028,0.01128107,88644.0,88631.0,0.01128]
[1767167222249,0.14245,88644.0,88631.0,0.01128]
[1767167222915,0.14245,88649.0,88644.0,0.000549]
[1767167223121,0.14245,88647.0,88644.0,0.000549]
[1767167223327,0.15373069,88647.0,88644.0,0.000549]
[1767167223536,0.14245,88647.0,88631.0,0.16271273]
[1767167223985,0.0001135,88650.0,88634.0,0.01128235]
[1767167224217,0.0001135,88650.0,88635.0,0.15143222]
[1767167224842,0.0001135,88650.0,88637.0,0.15143197]
[1767167225113,0.0001135,88650.0,88639.0,0.14015]
[1767167226793,0.0001135,88650.0,88638.0,0.01132]